[Event "Early-Titled-Tuesday-Blitz-April-02-2024"]
[Site "Chess.com"]
[Date "2024.04.02"]
[Round "5"]
[White "Hamisandwich"]
[Black "dropstoneDP"]
[Result "1/2-1/2"]
[WhiteElo "2716"]
[BlackElo "2999"]
[TimeControl "180+1"]
[EndTime "8:56:49 PDT"]
[Termination "Game drawn - insufficient material"]

1. c3 {[%clk 0:03:00.3]} 1... Nf6 {[%clk 0:02:57.7]} 2. g3 {[%clk 0:02:59]} 2...
d5 {[%clk 0:02:57.2]} 3. Bg2 {[%clk 0:02:58.1]} 3... e5 {[%clk 0:02:57.8]} 4. d3
{[%clk 0:02:58.3]} 4... h6 {[%clk 0:02:57.5]} 5. Nf3 {[%clk 0:02:56.3]} 5... Nc6
{[%clk 0:02:56.9]} 6. b4 {[%clk 0:02:54.4]} 6... Bd6 {[%clk 0:02:49.6]} 7. b5
{[%clk 0:02:40.2]} 7... Ne7 {[%clk 0:02:49]} 8. Ba3 {[%clk 0:02:33.1]} 8... a6
{[%clk 0:02:46.5]} 9. Bxd6 {[%clk 0:02:25.7]} 9... Qxd6 {[%clk 0:02:46.9]} 10.
c4 {[%clk 0:02:20.5]} 10... dxc4 {[%clk 0:02:42.6]} 11. dxc4 {[%clk 0:02:21.4]}
11... Qxd1+ {[%clk 0:02:37.2]} 12. Kxd1 {[%clk 0:02:22.3]} 12... axb5 {[%clk
0:02:32.1]} 13. Nxe5 {[%clk 0:02:13.3]} 13... Ng4 {[%clk 0:02:29.8]} 14. Nxg4
{[%clk 0:02:09.8]} 14... Bxg4 {[%clk 0:02:30.7]} 15. cxb5 {[%clk 0:02:02.6]}
15... c6 {[%clk 0:01:41.1]} 16. Nc3 {[%clk 0:01:49.8]} 16... O-O {[%clk
0:01:31.7]} 17. Kc2 {[%clk 0:01:40.9]} 17... cxb5 {[%clk 0:01:29.7]} 18. Bxb7
{[%clk 0:01:36.6]} 18... Rab8 {[%clk 0:01:16.3]} 19. Bf3 {[%clk 0:01:31.7]}
19... Bxf3 {[%clk 0:01:06.4]} 20. exf3 {[%clk 0:01:32.6]} 20... Rfc8 {[%clk
0:01:06.9]} 21. Kb2 {[%clk 0:01:25.7]} 21... Nc6 {[%clk 0:01:03.4]} 22. Rac1
{[%clk 0:01:17.5]} 22... Ne5 {[%clk 0:01:02.3]} 23. Rhd1 {[%clk 0:00:55.8]}
23... b4 {[%clk 0:00:57.4]} 24. Nd5 {[%clk 0:00:50.1]} 24... Rxc1 {[%clk
0:00:57.7]} 25. Kxc1 {[%clk 0:00:49.2]} 25... Nxf3 {[%clk 0:00:52.5]} 26. Rd3
{[%clk 0:00:43.5]} 26... Nxh2 {[%clk 0:00:48.4]} 27. Rb3 {[%clk 0:00:41.2]}
27... Ng4 {[%clk 0:00:48.3]} 28. Rxb4 {[%clk 0:00:26.2]} 28... Rxb4 {[%clk
0:00:48.7]} 29. Nxb4 {[%clk 0:00:26.3]} 29... Nxf2 {[%clk 0:00:49]} 30. a4
{[%clk 0:00:24.5]} 30... Ne4 {[%clk 0:00:44.3]} 31. a5 {[%clk 0:00:24.5]} 31...
Nd6 {[%clk 0:00:34.2]} 32. a6 {[%clk 0:00:24.4]} 32... Nb5 {[%clk 0:00:34.6]}
33. Nc6 {[%clk 0:00:24.4]} 33... Kf8 {[%clk 0:00:25.9]} 34. Kd2 {[%clk
0:00:21.5]} 34... Ke8 {[%clk 0:00:24.4]} 35. a7 {[%clk 0:00:18.1]} 35... Nc7
{[%clk 0:00:24.1]} 36. Ke3 {[%clk 0:00:13.9]} 36... Kd7 {[%clk 0:00:23.8]} 37.
Nb8+ {[%clk 0:00:14.1]} 37... Kc8 {[%clk 0:00:21.4]} 38. Na6 {[%clk 0:00:14]}
38... Na8 {[%clk 0:00:19.5]} 39. Nc5 {[%clk 0:00:14.4]} 39... Kc7 {[%clk
0:00:19.1]} 40. Ne4 {[%clk 0:00:12.6]} 40... Kb6 {[%clk 0:00:07]} 41. Nd6 {[%clk
0:00:12.5]} 41... Kxa7 {[%clk 0:00:07.1]} 42. Nxf7 {[%clk 0:00:11.3]} 42... Kb6
{[%clk 0:00:07.8]} 43. Kf4 {[%clk 0:00:10.6]} 43... Nc7 {[%clk 0:00:05.4]} 44.
Kf5 {[%clk 0:00:10.7]} 44... Kc5 {[%clk 0:00:06]} 45. Nd8 {[%clk 0:00:05.3]}
45... Kd5 {[%clk 0:00:05.1]} 46. Kg6 {[%clk 0:00:05.7]} 46... Ne8 {[%clk
0:00:03.8]} 47. Kf7 {[%clk 0:00:05.2]} 47... Ke5 {[%clk 0:00:03.4]} 48. Kxe8
{[%clk 0:00:04.9]} 48... Kf5 {[%clk 0:00:04.1]} 49. Kf7 {[%clk 0:00:04.7]} 49...
g5 {[%clk 0:00:04.7]} 50. Ne6 {[%clk 0:00:04.3]} 50... h5 {[%clk 0:00:04]} 51.
Ng7+ {[%clk 0:00:02.5]} 51... Kg4 {[%clk 0:00:04.1]} 52. Kg6 {[%clk 0:00:03]}
52... h4 {[%clk 0:00:04.7]} 53. gxh4 {[%clk 0:00:03.9]} 53... gxh4 {[%clk
0:00:05.6]} 54. Nf5 {[%clk 0:00:01.7]} 54... h3 {[%clk 0:00:05.7]} 55. Ne3+
{[%clk 0:00:02.2]} 55... Kf3 {[%clk 0:00:05.6]} 56. Nf1 {[%clk 0:00:02.7]} 56...
Kg2 {[%clk 0:00:06.2]} 57. Ne3+ {[%clk 0:00:02.9]} 57... Kf2 {[%clk 0:00:06.9]}
58. Ng4+ {[%clk 0:00:02.4]} 58... Kg3 {[%clk 0:00:07.5]} 59. Kg5 {[%clk
0:00:03]} 59... h2 {[%clk 0:00:08.4]} 60. Nxh2 {[%clk 0:00:03]} 1/2-1/2

[Event "Early-Titled-Tuesday-Blitz-April-02-2024"]
[Site "Chess.com"]
[Date "2024.04.02"]
[Round "5"]
[White "Al_Shima"]
[Black "Rodalquilar"]
[Result "1-0"]
[WhiteElo "2482"]
[BlackElo "2729"]
[TimeControl "180+1"]
[EndTime "8:56:53 PDT"]
[Termination "Al_Shima won on time"]

1. e4 {[%clk 0:02:57.7]} 1... d5 {[%clk 0:03:00]} 2. exd5 {[%clk 0:02:57.7]}
2... Qxd5 {[%clk 0:03:00.9]} 3. Nc3 {[%clk 0:02:57.1]} 3... Qa5 {[%clk
0:03:00.6]} 4. Bc4 {[%clk 0:02:57.5]} 4... Nf6 {[%clk 0:03:00.7]} 5. d3 {[%clk
0:02:57.8]} 5... Bg4 {[%clk 0:02:58.7]} 6. Ne2 {[%clk 0:02:51.2]} 6... Nc6
{[%clk 0:02:56.9]} 7. Be3 {[%clk 0:02:42.6]} 7... e6 {[%clk 0:02:52.6]} 8. h3
{[%clk 0:02:37.4]} 8... Bxe2 {[%clk 0:02:51.2]} 9. Qxe2 {[%clk 0:02:38.3]} 9...
Bb4 {[%clk 0:02:48.2]} 10. Bd2 {[%clk 0:02:17.6]} 10... Nd4 {[%clk 0:02:48.3]}
11. Qd1 {[%clk 0:02:14.6]} 11... Qe5+ {[%clk 0:02:48.3]} 12. Be3 {[%clk
0:01:31.7]} 12... Nf5 {[%clk 0:02:48]} 13. Qd2 {[%clk 0:01:30.8]} 13... Nd5
{[%clk 0:02:48]} 14. Bxd5 {[%clk 0:01:26.1]} 14... exd5 {[%clk 0:02:48.4]} 15.
d4 {[%clk 0:01:25.9]} 15... Qe6 {[%clk 0:02:38.1]} 16. O-O-O {[%clk 0:01:25.3]}
16... Nd6 {[%clk 0:02:35.4]} 17. Qd3 {[%clk 0:01:06.4]} 17... O-O-O {[%clk
0:02:17.4]} 18. Rhe1 {[%clk 0:00:49.9]} 18... Nc4 {[%clk 0:02:11.7]} 19. a3
{[%clk 0:00:22.2]} 19... Qb6 {[%clk 0:01:49.9]} 20. Na4 {[%clk 0:00:12.3]} 20...
Qb5 {[%clk 0:01:46.3]} 21. axb4 {[%clk 0:00:09.6]} 21... Qxa4 {[%clk 0:01:46.3]}
22. c3 {[%clk 0:00:09.9]} 22... Rd6 {[%clk 0:01:36.6]} 23. Bf4 {[%clk
0:00:08.3]} 23... Rc6 {[%clk 0:01:35.2]} 24. Qf5+ {[%clk 0:00:07.3]} 24... Kb8
{[%clk 0:01:35]} 25. Qc2 {[%clk 0:00:07]} 25... Qb5 {[%clk 0:01:19.8]} 26. Re7
{[%clk 0:00:05.4]} 26... a5 {[%clk 0:01:16.7]} 27. bxa5 {[%clk 0:00:03.4]} 27...
Qxa5 {[%clk 0:01:17.2]} 28. Rde1 {[%clk 0:00:03.3]} 28... Ka7 {[%clk 0:01:09.1]}
29. Rxf7 {[%clk 0:00:02.7]} 29... Rc8 {[%clk 0:00:55]} 30. Ree7 {[%clk
0:00:03.1]} 30... Na3 {[%clk 0:00:40.1]} 31. Qb3 {[%clk 0:00:02]} 31... Nb5
{[%clk 0:00:38.8]} 32. Kd2 {[%clk 0:00:01.7]} 32... Rb6 {[%clk 0:00:22]} 33. Qb4
{[%clk 0:00:01.7]} 33... Qxb4 {[%clk 0:00:12.5]} 34. cxb4 {[%clk 0:00:01.9]}
34... Nxd4 {[%clk 0:00:13.4]} 35. Bxc7 {[%clk 0:00:01.8]} 35... Rxb4 {[%clk
0:00:13.9]} 36. Bd6 {[%clk 0:00:02.1]} 36... Rxb2+ {[%clk 0:00:11.4]} 37. Ke3
{[%clk 0:00:02.6]} 37... Nb5 {[%clk 0:00:08.1]} 38. Be5 {[%clk 0:00:02.6]} 38...
Rb3+ {[%clk 0:00:08]} 39. Kf4 {[%clk 0:00:02.8]} 39... Rc4+ {[%clk 0:00:08]} 40.
Kf5 {[%clk 0:00:02.4]} 40... g6+ {[%clk 0:00:08.4]} 41. Ke6 {[%clk 0:00:02.7]}
41... Rc6+ {[%clk 0:00:07.8]} 42. Kd7 {[%clk 0:00:02.4]} 42... d4 {[%clk
0:00:06.9]} 43. Ke8 {[%clk 0:00:02.8]} 43... Nc3 {[%clk 0:00:05.1]} 44. Bxd4+
{[%clk 0:00:02.8]} 44... Ka6 {[%clk 0:00:04.7]} 45. Bxc3 {[%clk 0:00:03.1]}
45... Rbxc3 {[%clk 0:00:04.1]} 46. Rxh7 {[%clk 0:00:03.7]} 46... Rc8+ {[%clk
0:00:03.9]} 47. Kf7 {[%clk 0:00:04.2]} 47... b5 {[%clk 0:00:04.2]} 48. Kxg6
{[%clk 0:00:04.6]} 48... Rg8+ {[%clk 0:00:03.7]} 49. Rhg7 {[%clk 0:00:04.6]}
49... Rf8 {[%clk 0:00:03.7]} 50. Ref7 {[%clk 0:00:04.5]} 50... Rb8 {[%clk
0:00:03.5]} 51. Rf6+ {[%clk 0:00:05]} 51... Ka5 {[%clk 0:00:03.7]} 52. h4 {[%clk
0:00:05.5]} 52... b4 {[%clk 0:00:04.1]} 53. h5 {[%clk 0:00:06]} 53... b3 {[%clk
0:00:04.7]} 54. Ra7+ {[%clk 0:00:06]} 54... Kb4 {[%clk 0:00:04.2]} 55. Rf4+
{[%clk 0:00:05.5]} 55... Kc5 {[%clk 0:00:03.5]} 56. Rc7+ {[%clk 0:00:05.5]}
56... Kd5 {[%clk 0:00:04.1]} 57. Rxc3 {[%clk 0:00:03.7]} 57... b2 {[%clk
0:00:04.8]} 58. Rd3+ {[%clk 0:00:04.2]} 58... Ke5 {[%clk 0:00:05.4]} 59. Rf5+
{[%clk 0:00:04.4]} 59... Ke4 {[%clk 0:00:04.5]} 60. Rd1 {[%clk 0:00:04.7]} 60...
Rb6+ {[%clk 0:00:04.2]} 61. Rf6 {[%clk 0:00:04.5]} 61... Rb7 {[%clk 0:00:04.6]}
62. h6 {[%clk 0:00:04.4]} 62... Rd7 {[%clk 0:00:05.5]} 63. Rb1 {[%clk
0:00:03.7]} 63... Rd1 {[%clk 0:00:06.1]} 64. Rxd1 {[%clk 0:00:03.7]} 64... b1=Q
{[%clk 0:00:06.4]} 65. Rxb1 {[%clk 0:00:04.2]} 1-0

[Event "Early-Titled-Tuesday-Blitz-April-02-2024"]
[Site "Chess.com"]
[Date "2024.04.02"]
[Round "5"]
[White "vangulio"]
[Black "FGHSMN"]
[Result "0-1"]
[WhiteElo "2547"]
[BlackElo "2910"]
[TimeControl "180+1"]
[EndTime "8:56:53 PDT"]
[Termination "FGHSMN won on time"]

1. e4 {[%clk 0:03:00.9]} 1... e5 {[%clk 0:02:59.4]} 2. Nf3 {[%clk 0:03:01.3]}
2... Nc6 {[%clk 0:02:59]} 3. Bb5 {[%clk 0:03:01.7]} 3... a6 {[%clk 0:02:57.9]}
4. Ba4 {[%clk 0:03:02.3]} 4... Nf6 {[%clk 0:02:58.5]} 5. O-O {[%clk 0:03:02.6]}
5... d6 {[%clk 0:02:59.1]} 6. Re1 {[%clk 0:02:59.6]} 6... Bd7 {[%clk 0:02:59]}
7. c3 {[%clk 0:02:58.2]} 7... g6 {[%clk 0:02:58.7]} 8. d4 {[%clk 0:02:57.8]}
8... Bg7 {[%clk 0:02:59]} 9. Nbd2 {[%clk 0:02:52.9]} 9... O-O {[%clk 0:02:58.6]}
10. Nf1 {[%clk 0:02:51.7]} 10... exd4 {[%clk 0:02:58.2]} 11. cxd4 {[%clk
0:02:52.6]} 11... b5 {[%clk 0:02:58.4]} 12. Bb3 {[%clk 0:02:50.9]} 12... Bg4
{[%clk 0:02:56.5]} 13. Be3 {[%clk 0:02:44.5]} 13... Na5 {[%clk 0:02:44.6]} 14.
Bc2 {[%clk 0:02:40.7]} 14... Nc4 {[%clk 0:02:23.6]} 15. Bc1 {[%clk 0:02:39.9]}
15... Nd7 {[%clk 0:02:13.7]} 16. b3 {[%clk 0:02:21.7]} 16... Bxf3 {[%clk
0:02:12.3]} 17. gxf3 {[%clk 0:02:22.3]} 17... Ncb6 {[%clk 0:02:07.5]} 18. Ng3
{[%clk 0:02:08.4]} 18... c5 {[%clk 0:02:01.4]} 19. Be3 {[%clk 0:02:07.5]} 19...
Rc8 {[%clk 0:01:54.2]} 20. Rc1 {[%clk 0:02:04.5]} 20... Qh4 {[%clk 0:01:45.6]}
21. dxc5 {[%clk 0:01:34.3]} 21... dxc5 {[%clk 0:01:46.5]} 22. f4 {[%clk
0:01:34]} 22... Nf6 {[%clk 0:01:39.2]} 23. Qf3 {[%clk 0:01:19.8]} 23... Ng4
{[%clk 0:01:38.2]} 24. Qg2 {[%clk 0:01:19.5]} 24... Nxe3 {[%clk 0:01:30.8]} 25.
fxe3 {[%clk 0:01:20.4]} 25... c4 {[%clk 0:01:30.7]} 26. e5 {[%clk 0:01:12.8]}
26... Qe7 {[%clk 0:01:14.4]} 27. Ne4 {[%clk 0:00:54.9]} 27... Rcd8 {[%clk
0:01:05.2]} 28. Rcd1 {[%clk 0:00:54.3]} 28... Nd5 {[%clk 0:00:54.9]} 29. bxc4
{[%clk 0:00:47.6]} 29... bxc4 {[%clk 0:00:53]} 30. Nd6 {[%clk 0:00:36.3]} 30...
Nc3 {[%clk 0:00:44.4]} 31. Rd4 {[%clk 0:00:24.9]} 31... Nb5 {[%clk 0:00:42.1]}
32. Rxc4 {[%clk 0:00:18]} 32... Nxd6 {[%clk 0:00:41.1]} 33. exd6 {[%clk
0:00:18.7]} 33... Rxd6 {[%clk 0:00:41.6]} 34. Qe4 {[%clk 0:00:18.4]} 34... Qh4
{[%clk 0:00:39.9]} 35. Re2 {[%clk 0:00:16.2]} 35... Rfd8 {[%clk 0:00:36.1]} 36.
Qf3 {[%clk 0:00:13.8]} 36... Qf6 {[%clk 0:00:31.4]} 37. Kg2 {[%clk 0:00:13.6]}
37... Qa1 {[%clk 0:00:25.3]} 38. Bb3 {[%clk 0:00:10.9]} 38... a5 {[%clk
0:00:22.6]} 39. Rc7 {[%clk 0:00:10.4]} 39... Rf8 {[%clk 0:00:20.8]} 40. Qe4
{[%clk 0:00:08.2]} 40... Qf6 {[%clk 0:00:18.9]} 41. Rec2 {[%clk 0:00:08.4]}
41... Qh4 {[%clk 0:00:17.9]} 42. Qf3 {[%clk 0:00:08.2]} 42... g5 {[%clk
0:00:16.2]} 43. R7c4 {[%clk 0:00:05.7]} 43... gxf4 {[%clk 0:00:09.5]} 44. Rxf4
{[%clk 0:00:05.4]} 44... Rg6+ {[%clk 0:00:10.2]} 45. Kf1 {[%clk 0:00:05]} 45...
Qe7 {[%clk 0:00:08.9]} 46. Rc6 {[%clk 0:00:03.5]} 46... Rxc6 {[%clk 0:00:06.8]}
47. Qxc6 {[%clk 0:00:04.4]} 47... Qxe3 {[%clk 0:00:07.2]} 48. Qf3 {[%clk
0:00:04.2]} 48... Qe7 {[%clk 0:00:06.4]} 49. Re4 {[%clk 0:00:04.3]} 49... Qg5
{[%clk 0:00:05.9]} 50. Rf4 {[%clk 0:00:04.1]} 50... Kh8 {[%clk 0:00:05.7]} 51.
Rg4 {[%clk 0:00:04.5]} 51... Qc1+ {[%clk 0:00:05.4]} 52. Kg2 {[%clk 0:00:05.2]}
52... f5 {[%clk 0:00:05.3]} 53. Rf4 {[%clk 0:00:05.2]} 53... Qb2+ {[%clk
0:00:04.2]} 54. Kf1 {[%clk 0:00:05]} 54... Qa1+ {[%clk 0:00:04.1]} 55. Kg2
{[%clk 0:00:04.7]} 55... Qe5 {[%clk 0:00:04.8]} 56. Bc2 {[%clk 0:00:03.2]} 56...
Qb2 {[%clk 0:00:04.7]} 57. Qf2 {[%clk 0:00:02.3]} 57... Rg8 {[%clk 0:00:04.9]}
58. Kf1 {[%clk 0:00:02.3]} 58... Qc1+ {[%clk 0:00:04.8]} 59. Kg2 {[%clk
0:00:02.2]} 59... Bd4+ {[%clk 0:00:04.3]} 60. Kh3 {[%clk 0:00:03.1]} 60... Bxf2
{[%clk 0:00:04.8]} 61. Rxf5 {[%clk 0:00:03.9]} 61... Qe3+ {[%clk 0:00:04.9]} 0-1

[Event "Early-Titled-Tuesday-Blitz-April-02-2024"]
[Site "Chess.com"]
[Date "2024.04.02"]
[Round "5"]
[White "lilleper1"]
[Black "Hikaru"]
[Result "1/2-1/2"]
[WhiteElo "2918"]
[BlackElo "3262"]
[TimeControl "180+1"]
[EndTime "8:56:56 PDT"]
[Termination "Game drawn - insufficient material"]

1. e4 {[%clk 0:03:00.9]} 1... c6 {[%clk 0:02:52.3]} 2. Nf3 {[%clk 0:02:59]} 2...
d5 {[%clk 0:02:51.6]} 3. Nc3 {[%clk 0:02:59.4]} 3... Bg4 {[%clk 0:02:50.6]} 4.
h3 {[%clk 0:02:57.6]} 4... Bxf3 {[%clk 0:02:50.2]} 5. Qxf3 {[%clk 0:02:58.5]}
5... e6 {[%clk 0:02:50.4]} 6. d4 {[%clk 0:02:55.7]} 6... Nf6 {[%clk 0:02:42.1]}
7. Qd3 {[%clk 0:02:18]} 7... Bb4 {[%clk 0:02:32.4]} 8. exd5 {[%clk 0:02:11.8]}
8... cxd5 {[%clk 0:02:11.4]} 9. Qb5+ {[%clk 0:02:08.7]} 9... Nc6 {[%clk
0:02:11.2]} 10. Qxb7 {[%clk 0:02:08.2]} 10... Nxd4 {[%clk 0:02:11.1]} 11. Bd3
{[%clk 0:01:57.1]} 11... Qb8 {[%clk 0:01:53.5]} 12. Qa6 {[%clk 0:01:30.5]} 12...
O-O {[%clk 0:01:40.4]} 13. O-O {[%clk 0:01:29.8]} 13... Rc8 {[%clk 0:01:20.1]}
14. Be3 {[%clk 0:01:26.7]} 14... Nc6 {[%clk 0:01:20.1]} 15. Ne2 {[%clk
0:01:15.7]} 15... Ne5 {[%clk 0:01:20.2]} 16. Bg5 {[%clk 0:00:49.8]} 16... Nfd7
{[%clk 0:01:16.8]} 17. Qb5 {[%clk 0:00:43.2]} 17... Nc5 {[%clk 0:01:12.9]} 18.
Qxb8 {[%clk 0:00:36.2]} 18... Raxb8 {[%clk 0:01:13.8]} 19. Bf4 {[%clk
0:00:22.6]} 19... f6 {[%clk 0:01:14]} 20. a3 {[%clk 0:00:18.5]} 20... Ncxd3
{[%clk 0:01:13]} 21. cxd3 {[%clk 0:00:17.6]} 21... Bd6 {[%clk 0:01:12.9]} 22. d4
{[%clk 0:00:17.5]} 22... Nf7 {[%clk 0:01:11.8]} 23. Bxd6 {[%clk 0:00:15.7]}
23... Nxd6 {[%clk 0:01:12.7]} 24. Rab1 {[%clk 0:00:14.7]} 24... Rc2 {[%clk
0:01:00.4]} 25. Nf4 {[%clk 0:00:14.5]} 25... Kf7 {[%clk 0:01:00.6]} 26. Rfe1
{[%clk 0:00:14.5]} 26... Ne4 {[%clk 0:01:01.2]} 27. f3 {[%clk 0:00:13.8]} 27...
Nd2 {[%clk 0:01:01.4]} 28. Rbc1 {[%clk 0:00:13.4]} 28... Rxc1 {[%clk 0:01:01.2]}
29. Rxc1 {[%clk 0:00:13.1]} 29... Nc4 {[%clk 0:01:02.1]} 30. b4 {[%clk
0:00:11.5]} 30... Rb7 {[%clk 0:00:53.8]} 31. Re1 {[%clk 0:00:10]} 31... Rb6
{[%clk 0:00:52.3]} 32. g4 {[%clk 0:00:07]} 32... a6 {[%clk 0:00:47.5]} 33. Ra1
{[%clk 0:00:05.4]} 33... a5 {[%clk 0:00:46.3]} 34. bxa5 {[%clk 0:00:05.5]} 34...
Nxa5 {[%clk 0:00:47.2]} 35. Rc1 {[%clk 0:00:05.1]} 35... Nc4 {[%clk 0:00:47.4]}
36. Rc3 {[%clk 0:00:04.4]} 36... g5 {[%clk 0:00:41.1]} 37. Nd3 {[%clk
0:00:04.6]} 37... Ra6 {[%clk 0:00:41.7]} 38. Rb3 {[%clk 0:00:04]} 38... Na5
{[%clk 0:00:33.1]} 39. Rb5 {[%clk 0:00:03.8]} 39... Nc6 {[%clk 0:00:33.3]} 40.
Rb7+ {[%clk 0:00:04.1]} 40... Kg6 {[%clk 0:00:32.8]} 41. Nc5 {[%clk 0:00:04.1]}
41... Ra8 {[%clk 0:00:22.9]} 42. Nxe6 {[%clk 0:00:04.1]} 42... Re8 {[%clk
0:00:23.6]} 43. Ng7 {[%clk 0:00:03.1]} 43... Re7 {[%clk 0:00:15.3]} 44. Rxe7
{[%clk 0:00:03.3]} 44... Nxe7 {[%clk 0:00:16.2]} 45. Ne6 {[%clk 0:00:02.4]}
45... Nc6 {[%clk 0:00:16.2]} 46. Nc7 {[%clk 0:00:02.4]} 46... Nxd4 {[%clk
0:00:15.9]} 47. Nxd5 {[%clk 0:00:02.8]} 47... Nxf3+ {[%clk 0:00:16]} 48. Kf2
{[%clk 0:00:03.4]} 48... Ne5 {[%clk 0:00:16.7]} 49. a4 {[%clk 0:00:03.5]} 49...
Nc6 {[%clk 0:00:17.4]} 50. Nb6 {[%clk 0:00:02.9]} 50... f5 {[%clk 0:00:16.8]}
51. gxf5+ {[%clk 0:00:03]} 51... Kxf5 {[%clk 0:00:17.7]} 52. Nc4 {[%clk
0:00:03.4]} 52... Kf4 {[%clk 0:00:17.1]} 53. Ne3 {[%clk 0:00:03.4]} 53... Nb4
{[%clk 0:00:17.1]} 54. Nc4 {[%clk 0:00:03.4]} 54... h5 {[%clk 0:00:17.2]} 55.
Ne3 {[%clk 0:00:03.7]} 55... Nd3+ {[%clk 0:00:14.4]} 56. Ke2 {[%clk 0:00:04.2]}
56... Nc1+ {[%clk 0:00:14.8]} 57. Kf2 {[%clk 0:00:04.6]} 57... Nd3+ {[%clk
0:00:15.3]} 58. Ke2 {[%clk 0:00:05.2]} 58... Nc5 {[%clk 0:00:15.8]} 59. a5
{[%clk 0:00:04.8]} 59... Kg3 {[%clk 0:00:16.5]} 60. Nd5 {[%clk 0:00:03.9]} 60...
Kxh3 {[%clk 0:00:16.5]} 61. Nf6 {[%clk 0:00:03.6]} 61... Kh4 {[%clk 0:00:12.6]}
62. Kf3 {[%clk 0:00:03.2]} 62... g4+ {[%clk 0:00:13.2]} 63. Kg2 {[%clk
0:00:02.9]} 63... Kg5 {[%clk 0:00:06.7]} 64. Ne4+ {[%clk 0:00:02.9]} 64... Nxe4
{[%clk 0:00:07.4]} 65. a6 {[%clk 0:00:03.6]} 65... h4 {[%clk 0:00:08.2]} 66. a7
{[%clk 0:00:03.9]} 66... h3+ {[%clk 0:00:09.1]} 67. Kg1 {[%clk 0:00:04.1]} 67...
g3 {[%clk 0:00:08.9]} 68. a8=Q {[%clk 0:00:04.4]} 68... h2+ {[%clk 0:00:09.8]}
69. Kg2 {[%clk 0:00:04.4]} 69... Nf2 {[%clk 0:00:10.7]} 70. Qd5+ {[%clk
0:00:04.1]} 70... Kf6 {[%clk 0:00:10.8]} 71. Qd6+ {[%clk 0:00:04.2]} 71... Kf7
{[%clk 0:00:11.2]} 72. Qf4+ {[%clk 0:00:04.2]} 72... Ke6 {[%clk 0:00:11.3]} 73.
Qh6+ {[%clk 0:00:03.7]} 73... Kd7 {[%clk 0:00:11.1]} 74. Kxg3 {[%clk 0:00:03.4]}
74... h1=Q {[%clk 0:00:09.4]} 75. Qxh1 {[%clk 0:00:04]} 75... Nxh1+ {[%clk
0:00:10]} 1/2-1/2

[Event "Early-Titled-Tuesday-Blitz-April-02-2024"]
[Site "Chess.com"]
[Date "2024.04.02"]
[Round "5"]
[White "Byniolus"]
[Black "artin10862"]
[Result "1-0"]
[WhiteElo "2780"]
[BlackElo "2915"]
[TimeControl "180+1"]
[EndTime "8:57:01 PDT"]
[Termination "Byniolus won on time"]

1. d4 {[%clk 0:03:00.9]} 1... Nf6 {[%clk 0:02:49]} 2. Nf3 {[%clk 0:03:00.7]}
2... e6 {[%clk 0:02:46.6]} 3. Bf4 {[%clk 0:03:00.9]} 3... h6 {[%clk 0:02:34.3]}
4. h3 {[%clk 0:02:58.2]} 4... b6 {[%clk 0:02:29.8]} 5. Nbd2 {[%clk 0:02:57.2]}
5... Bb7 {[%clk 0:02:29.6]} 6. e3 {[%clk 0:02:55.3]} 6... g6 {[%clk 0:02:26.7]}
7. Be2 {[%clk 0:02:53.3]} 7... Bg7 {[%clk 0:00:51.4]} 8. a4 {[%clk 0:02:52.6]}
8... a6 {[%clk 0:00:51.1]} 9. O-O {[%clk 0:02:52]} 9... O-O {[%clk 0:00:51.7]}
10. c3 {[%clk 0:02:52.6]} 10... d6 {[%clk 0:00:52.2]} 11. Bh2 {[%clk 0:02:53.2]}
11... Nbd7 {[%clk 0:00:52.7]} 12. Qb3 {[%clk 0:02:53]} 12... Rb8 {[%clk
0:00:48.5]} 13. Rfd1 {[%clk 0:02:52.9]} 13... Qe7 {[%clk 0:00:47.9]} 14. Qa3
{[%clk 0:02:43.5]} 14... Rfc8 {[%clk 0:00:47.1]} 15. Rac1 {[%clk 0:02:38.5]}
15... c5 {[%clk 0:00:46.3]} 16. Nc4 {[%clk 0:02:32.2]} 16... d5 {[%clk
0:00:20.8]} 17. Nd6 {[%clk 0:01:59.2]} 17... Re8 {[%clk 0:00:12]} 18. Nxb7
{[%clk 0:01:59.4]} 18... Rxb7 {[%clk 0:00:12.9]} 19. Bxa6 {[%clk 0:01:59.9]}
19... Ra7 {[%clk 0:00:13.8]} 20. Bb5 {[%clk 0:02:00.5]} 20... Rea8 {[%clk
0:00:14.2]} 21. Qb3 {[%clk 0:01:51.3]} 21... Bf8 {[%clk 0:00:14.4]} 22. Ne5
{[%clk 0:01:46.1]} 22... Nxe5 {[%clk 0:00:13.4]} 23. Bxe5 {[%clk 0:01:47]} 23...
Nd7 {[%clk 0:00:13.9]} 24. Bg3 {[%clk 0:01:46.6]} 24... Rc8 {[%clk 0:00:07.7]}
25. Qc2 {[%clk 0:01:35]} 25... Nf6 {[%clk 0:00:07.3]} 26. Bh4 {[%clk 0:01:22.8]}
26... Qd8 {[%clk 0:00:06.8]} 27. Qe2 {[%clk 0:00:55]} 27... Be7 {[%clk
0:00:07.1]} 28. c4 {[%clk 0:00:52.9]} 28... dxc4 {[%clk 0:00:05.1]} 29. dxc5
{[%clk 0:00:49.5]} 29... Nd5 {[%clk 0:00:05.1]} 30. Bxe7 {[%clk 0:00:38.3]}
30... Qxe7 {[%clk 0:00:06]} 31. c6 {[%clk 0:00:38.8]} 31... c3 {[%clk
0:00:05.1]} 32. bxc3 {[%clk 0:00:35.3]} 32... Qc5 {[%clk 0:00:05.4]} 33. Qf3
{[%clk 0:00:21.7]} 33... Rac7 {[%clk 0:00:04.9]} 34. c4 {[%clk 0:00:19.3]} 34...
Ne7 {[%clk 0:00:05.1]} 35. Rd7 {[%clk 0:00:20]} 35... Kg7 {[%clk 0:00:03.8]} 36.
Rcd1 {[%clk 0:00:19.6]} 36... Nf5 {[%clk 0:00:03.3]} 37. Qf4 {[%clk 0:00:17.6]}
37... e5 {[%clk 0:00:02.6]} 38. Qe4 {[%clk 0:00:16.2]} 38... Ne7 {[%clk
0:00:02.3]} 39. Qf3 {[%clk 0:00:12.6]} 39... Nf5 {[%clk 0:00:02.3]} 40. g4
{[%clk 0:00:12.6]} 40... Ne7 {[%clk 0:00:02.5]} 41. h4 {[%clk 0:00:12.3]} 41...
Kf8 {[%clk 0:00:01.8]} 42. Qf6 {[%clk 0:00:11.2]} 42... Rxd7 {[%clk 0:00:01.2]}
43. cxd7 {[%clk 0:00:10.2]} 43... Rd8 {[%clk 0:00:01.8]} 44. Qh8+ {[%clk
0:00:10.2]} 44... Ng8 {[%clk 0:00:02.2]} 45. h5 {[%clk 0:00:08.5]} 45... Qe7
{[%clk 0:00:01.7]} 46. hxg6 {[%clk 0:00:07.8]} 46... fxg6 {[%clk 0:00:02.1]} 47.
a5 {[%clk 0:00:07.1]} 47... Qg5 {[%clk 0:00:02.4]} 48. Kf1 {[%clk 0:00:06.6]}
48... Qxg4 {[%clk 0:00:02.5]} 49. Rd2 {[%clk 0:00:05.7]} 49... Qh3+ {[%clk
0:00:02.6]} 50. Ke2 {[%clk 0:00:06.3]} 50... Qg4+ {[%clk 0:00:03.2]} 51. Kd3
{[%clk 0:00:05.4]} 51... Qf5+ {[%clk 0:00:03.7]} 52. Kc3 {[%clk 0:00:05.6]}
52... bxa5 {[%clk 0:00:04.2]} 53. c5 {[%clk 0:00:03.1]} 53... Qe6 {[%clk
0:00:04.5]} 54. Bc4 {[%clk 0:00:02.8]} 54... Qf6 {[%clk 0:00:01.4]} 55. Qxg8+
{[%clk 0:00:03.2]} 55... Ke7 {[%clk 0:00:02.3]} 56. Qd5 {[%clk 0:00:03.9]} 56...
Kf8 {[%clk 0:00:03]} 57. Qd6+ {[%clk 0:00:04.2]} 57... Qxd6 {[%clk 0:00:03.6]}
58. Rxd6 {[%clk 0:00:05.1]} 58... Ke7 {[%clk 0:00:04.5]} 59. Rd5 {[%clk
0:00:05.2]} 59... Rxd7 {[%clk 0:00:04.7]} 60. Rxe5+ {[%clk 0:00:05.3]} 60... Kf6
{[%clk 0:00:05.2]} 61. Rd5 {[%clk 0:00:05.7]} 61... Rc7 {[%clk 0:00:05.5]} 62.
Rd6+ {[%clk 0:00:06.2]} 62... Kg5 {[%clk 0:00:05.7]} 63. Kd4 {[%clk 0:00:06.7]}
63... a4 {[%clk 0:00:05.7]} 64. Ra6 {[%clk 0:00:06.6]} 64... Rd7+ {[%clk
0:00:05.8]} 65. Bd5 {[%clk 0:00:06.8]} 65... Rf7 {[%clk 0:00:06.2]} 66. Bxf7
{[%clk 0:00:06.8]} 1-0